[Event "Titled Tuesday Blitz July 4 Late 2023"]
[White "Horokoskii"]
[Black "Droin, Augustin"]
[BlackFideId "45105987"]
[WhiteElo "2077"]
[BlackElo "2526"]
[Result "0-1"]
[Round "1"]
[TimeControl "180+2"]
[Date "2023.07.04"]
[WhiteClock "0:01:39"]
[BlackClock "0:02:23"]
[Board "180"]

1. d4 {[%clk 0:02:55]}  Nf6 {[%clk 0:02:59]} 2. c4 {[%clk 0:02:55]}  e6 {[%clk 0:02:59]} 3. Nc3 {[%clk 0:02:55]}  Bb4 {[%clk 0:02:59]} 4. e3 {[%clk 0:02:55]}  c5 {[%clk 0:02:58]} 5. Ne2 {[%clk 0:02:55]}  O-O {[%clk 0:02:57]} 6. a3 {[%clk 0:02:53]}  Bxc3+ {[%clk 0:02:57]} 7. Nxc3 {[%clk 0:02:54]}  b6 {[%clk 0:02:57]} 8. Bd3 {[%clk 0:02:54]}  Bb7 {[%clk 0:02:57]} 9. f3 {[%clk 0:02:53]}  d6 {[%clk 0:02:57]} 10. O-O {[%clk 0:02:53]}  Nc6 {[%clk 0:02:56]} 11. d5 {[%clk 0:02:52]}  Ne5 {[%clk 0:02:55]} 12. Be2 {[%clk 0:02:50]}  Ba6 {[%clk 0:02:50]} 13. b3 {[%clk 0:02:41]}  Re8 {[%clk 0:02:49]} 14. Bb2 {[%clk 0:02:40]}  exd5 {[%clk 0:02:48]} 15. Nxd5 {[%clk 0:02:31]}  Bb7 {[%clk 0:02:48]} 16. Nxf6+ {[%clk 0:02:30]}  Qxf6 {[%clk 0:02:48]} 17. e4 {[%clk 0:02:26]}  Qh6 {[%clk 0:02:44]} 18. Qc1 {[%clk 0:01:58]}  Qg6 {[%clk 0:02:38]} 19. Qe3 {[%clk 0:01:50]}  Rad8 {[%clk 0:02:36]} 20. Rad1 {[%clk 0:01:49]}  f5 {[%clk 0:02:31]} 21. f4 {[%clk 0:01:42]}  Nf7 {[%clk 0:02:25]} 22. e5 {[%clk 0:01:39]}  Qxg2# {[%clk 0:02:23]} 0-1


[Site "https://www.chess.com"]

[Event "Titled Tuesday Blitz July 4 Late 2023"]
[White "Brunner, Nicolas"]
[Black "Tqebuchava, Zurab"]
[WhiteFideId "620246"]
[BlackFideId "13601113"]
[WhiteElo "2524"]
[BlackElo "2072"]
[Result "1-0"]
[Round "1"]
[TimeControl "180+2"]
[Date "2023.07.04"]
[WhiteClock "0:01:02"]
[BlackClock "0:00:14"]
[Board "181"]

1. Nf3 {[%clk 0:03:00]}  d6 {[%clk 0:02:58]} 2. g3 {[%clk 0:03:00]}  Nf6 {[%clk 0:02:59]} 3. Bg2 {[%clk 0:03:00]}  g6 {[%clk 0:02:59]} 4. O-O {[%clk 0:03:00]}  Bg7 {[%clk 0:02:59]} 5. d4 {[%clk 0:03:00]}  O-O {[%clk 0:02:59]} 6. b3 {[%clk 0:03:00]}  c6 {[%clk 0:02:58]} 7. Bb2 {[%clk 0:03:01]}  d5 {[%clk 0:02:56]} 8. Nbd2 {[%clk 0:03:00]}  Bf5 {[%clk 0:02:54]} 9. c4 {[%clk 0:03:00]}  Ne4 {[%clk 0:02:49]} 10. Rc1 {[%clk 0:02:55]}  Nxd2 {[%clk 0:02:43]} 11. Qxd2 {[%clk 0:02:55]}  Be4 {[%clk 0:02:43]} 12. Rfd1 {[%clk 0:02:54]}  Bxf3 {[%clk 0:02:41]} 13. Bxf3 {[%clk 0:02:54]}  e6 {[%clk 0:02:41]} 14. e4 {[%clk 0:02:54]}  dxc4 {[%clk 0:02:37]} 15. bxc4 {[%clk 0:02:54]}  Nd7 {[%clk 0:02:36]} 16. Kg2 {[%clk 0:02:53]}  Qe7 {[%clk 0:02:24]} 17. e5 {[%clk 0:02:51]}  Rfd8 {[%clk 0:02:22]} 18. Qe2 {[%clk 0:02:51]}  Rab8 {[%clk 0:02:16]} 19. Ba1 {[%clk 0:02:51]}  c5 {[%clk 0:02:12]} 20. d5 {[%clk 0:02:47]}  exd5 {[%clk 0:02:06]} 21. Rxd5 {[%clk 0:02:39]}  Nb6 {[%clk 0:01:56]} 22. Rdd1 {[%clk 0:02:35]}  Rxd1 {[%clk 0:01:54]} 23. Rxd1 {[%clk 0:02:35]}  Rd8 {[%clk 0:01:54]} 24. Rxd8+ {[%clk 0:02:33]}  Qxd8 {[%clk 0:01:54]} 25. Bxb7 {[%clk 0:02:34]}  Qd7 {[%clk 0:01:40]} 26. Qe4 {[%clk 0:02:28]}  Nxc4 {[%clk 0:01:21]} 27. Bd5 {[%clk 0:02:21]}  Nb6 {[%clk 0:01:16]} 28. Bb3 {[%clk 0:02:16]}  Qc8 {[%clk 0:01:00]} 29. Bd5 {[%clk 0:01:38]}  Nxd5 {[%clk 0:00:45]} 30. Qxd5 {[%clk 0:01:38]}  c4 {[%clk 0:00:42]} 31. Bc3 {[%clk 0:01:38]}  h5 {[%clk 0:00:39]} 32. h4 {[%clk 0:01:36]}  Qe6 {[%clk 0:00:36]} 33. Qxe6 {[%clk 0:01:21]}  fxe6 {[%clk 0:00:35]} 34. Kf3 {[%clk 0:01:22]}  Bf8 {[%clk 0:00:31]} 35. Ke4 {[%clk 0:01:21]}  Bc5 {[%clk 0:00:31]} 36. Bd4 {[%clk 0:01:21]}  Bb6 {[%clk 0:00:27]} 37. Bxb6 {[%clk 0:01:18]}  axb6 {[%clk 0:00:27]} 38. a4 {[%clk 0:01:18]}  Kg7 {[%clk 0:00:21]} 39. Kd4 {[%clk 0:01:18]}  g5 {[%clk 0:00:21]} 40. hxg5 {[%clk 0:01:02]}  Kg6 {[%clk 0:00:21]} 41. Kxc4 {[%clk 0:01:02]}  Kxg5 {[%clk 0:00:20]} 42. Kb5 {[%clk 0:01:02]}  Kf5 {[%clk 0:00:20]} 43. Kxb6 {[%clk 0:01:01]}  Kxe5 {[%clk 0:00:14]} 44. a5 {[%clk 0:01:02]} 1-0


[Site "https://www.chess.com"]

[Event "Titled Tuesday Blitz July 4 Late 2023"]
[White "Govender, Kaedan"]
[Black "Principe, Gerson"]
[WhiteFideId "14322072"]
[BlackFideId "3804550"]
[WhiteElo "2051"]
[BlackElo "2519"]
[Result "0-1"]
[Round "1"]
[TimeControl "180+2"]
[Date "2023.07.04"]
[WhiteClock "0:00:03"]
[BlackClock "0:00:27"]
[Board "184"]

1. d4 {[%clk 0:03:00]}  Nf6 {[%clk 0:02:59]} 2. c4 {[%clk 0:03:00]}  e6 {[%clk 0:02:59]} 3. Nf3 {[%clk 0:03:00]}  b6 {[%clk 0:02:59]} 4. g3 {[%clk 0:03:00]}  Bb7 {[%clk 0:02:59]} 5. Bg2 {[%clk 0:03:01]}  Be7 {[%clk 0:02:59]} 6. O-O {[%clk 0:03:01]}  O-O {[%clk 0:03:00]} 7. b3 {[%clk 0:03:01]}  a5 {[%clk 0:02:59]} 8. Bb2 {[%clk 0:03:01]}  a4 {[%clk 0:02:59]} 9. Nbd2 {[%clk 0:02:53]}  a3 {[%clk 0:02:54]} 10. Bc3 {[%clk 0:02:50]}  d5 {[%clk 0:02:55]} 11. cxd5 {[%clk 0:02:43]}  Nxd5 {[%clk 0:02:53]} 12. Rc1 {[%clk 0:02:39]}  Nxc3 {[%clk 0:02:52]} 13. Rxc3 {[%clk 0:02:39]}  Nd7 {[%clk 0:02:52]} 14. Qb1 {[%clk 0:02:30]}  Nf6 {[%clk 0:02:47]} 15. Rfc1 {[%clk 0:02:18]}  c5 {[%clk 0:02:46]} 16. e3 {[%clk 0:01:51]}  Nd5 {[%clk 0:02:27]} 17. R3c2 {[%clk 0:01:17]}  Nb4 {[%clk 0:02:01]} 18. Rc3 {[%clk 0:01:15]}  g6 {[%clk 0:02:01]} 19. Ne5 {[%clk 0:01:07]}  Bxg2 {[%clk 0:02:00]} 20. Kxg2 {[%clk 0:01:08]}  cxd4 {[%clk 0:01:55]} 21. exd4 {[%clk 0:01:03]}  Qxd4 {[%clk 0:01:55]} 22. Ndf3 {[%clk 0:00:59]}  Qd8 {[%clk 0:01:44]} 23. Qe4 {[%clk 0:00:51]}  Nd5 {[%clk 0:01:39]} 24. Rd3 {[%clk 0:00:46]}  Rc8 {[%clk 0:01:33]} 25. Nc6 {[%clk 0:00:42]}  Rxc6 {[%clk 0:01:10]} 26. Rxc6 {[%clk 0:00:40]}  Bc5 {[%clk 0:00:59]} 27. Rxd5 {[%clk 0:00:19]}  exd5 {[%clk 0:00:58]} 28. Qf4 {[%clk 0:00:20]}  Qd7 {[%clk 0:00:54]} 29. Qh6 {[%clk 0:00:15]}  Qg4 {[%clk 0:00:29]} 30. Ne5 {[%clk 0:00:04]}  Qh5 {[%clk 0:00:28]} 31. Qf4 {[%clk 0:00:03]}  Qf5 {[%clk 0:00:26]} 32. Qxf5 {[%clk 0:00:03]}  gxf5 {[%clk 0:00:26]} 33. Nd7 {[%clk 0:00:03]}  Rd8 {[%clk 0:00:26]} 34. Nxc5 {[%clk 0:00:04]}  bxc5 {[%clk 0:00:26]} 35. Rxc5 {[%clk 0:00:05]}  d4 {[%clk 0:00:27]} 36. Rxf5 {[%clk 0:00:05]}  d3 {[%clk 0:00:28]} 37. Rd5 {[%clk 0:00:03]}  Rxd5 {[%clk 0:00:27]} 0-1


[Site "https://www.chess.com"]

[Event "Titled Tuesday Blitz July 4 Late 2023"]
[White "ilya2700"]
[Black "Poeta, Caio Medeiros"]
[BlackFideId "2142660"]
[WhiteElo "2025"]
[BlackElo "2519"]
[Result "0-1"]
[Round "1"]
[TimeControl "180+2"]
[Date "2023.07.04"]
[WhiteClock "0:00:26"]
[BlackClock "0:02:23"]
[Board "186"]

1. e4 {[%clk 0:03:00]}  c6 {[%clk 0:02:59]} 2. d4 {[%clk 0:03:01]}  d5 {[%clk 0:03:00]} 3. exd5 {[%clk 0:03:01]}  cxd5 {[%clk 0:03:00]} 4. Bd3 {[%clk 0:03:02]}  Nf6 {[%clk 0:03:00]} 5. c3 {[%clk 0:03:03]}  Nc6 {[%clk 0:03:01]} 6. Nf3 {[%clk 0:03:04]}  g6 {[%clk 0:03:02]} 7. Bf4 {[%clk 0:03:05]}  Bg7 {[%clk 0:03:02]} 8. Nbd2 {[%clk 0:03:05]}  O-O {[%clk 0:03:03]} 9. O-O {[%clk 0:03:06]}  Nh5 {[%clk 0:03:02]} 10. Bg3 {[%clk 0:03:04]}  Nxg3 {[%clk 0:02:57]} 11. hxg3 {[%clk 0:03:05]}  f6 {[%clk 0:02:58]} 12. Re1 {[%clk 0:03:04]}  e5 {[%clk 0:02:57]} 13. dxe5 {[%clk 0:02:53]}  fxe5 {[%clk 0:02:58]} 14. Bc2 {[%clk 0:02:39]}  e4 {[%clk 0:02:58]} 15. Nh2 {[%clk 0:02:30]}  Qb6 {[%clk 0:02:57]} 16. Nb3 {[%clk 0:02:26]}  Qxf2+ {[%clk 0:02:56]} 17. Kh1 {[%clk 0:02:25]}  Be6 {[%clk 0:02:54]} 18. g4 {[%clk 0:01:33]}  Be5 {[%clk 0:02:40]} 19. Re2 {[%clk 0:00:57]}  Qh4 {[%clk 0:02:39]} 20. Qg1 {[%clk 0:00:50]}  Bxg4 {[%clk 0:02:35]} 21. Rd2 {[%clk 0:00:26]}  Rf5 {[%clk 0:02:23]} 0-1


[Site "https://www.chess.com"]

[Event "Titled Tuesday Blitz July 4 Late 2023"]
[White "Arencibia Monduy, Antonio"]
[Black "Panuganti, Kireet"]
[WhiteFideId "3507939"]
[BlackFideId "30903297"]
[WhiteElo "2519"]
[BlackElo "2023"]
[Result "1-0"]
[Round "1"]
[TimeControl "180+2"]
[Date "2023.07.04"]
[WhiteClock "0:00:25"]
[BlackClock "0:00:00"]
[Board "187"]

1. e4 {[%clk 0:02:59]}  c5 {[%clk 0:02:59]} 2. Nf3 {[%clk 0:02:59]}  d6 {[%clk 0:02:59]} 3. c3 {[%clk 0:02:58]}  Nf6 {[%clk 0:02:58]} 4. Bd3 {[%clk 0:02:58]}  g6 {[%clk 0:02:54]} 5. h3 {[%clk 0:02:58]}  Bg7 {[%clk 0:02:54]} 6. O-O {[%clk 0:02:58]}  O-O {[%clk 0:02:52]} 7. Bc2 {[%clk 0:02:59]}  Nc6 {[%clk 0:02:52]} 8. Re1 {[%clk 0:02:58]}  Rb8 {[%clk 0:02:40]} 9. d4 {[%clk 0:02:58]}  b5 {[%clk 0:02:32]} 10. dxc5 {[%clk 0:02:47]}  dxc5 {[%clk 0:02:27]} 11. Qe2 {[%clk 0:02:42]}  Nd7 {[%clk 0:02:17]} 12. Bf4 {[%clk 0:02:32]}  Nde5 {[%clk 0:02:13]} 13. Nbd2 {[%clk 0:02:26]}  Qb6 {[%clk 0:01:51]} 14. Rad1 {[%clk 0:02:14]}  Ba6 {[%clk 0:01:46]} 15. Nxe5 {[%clk 0:01:50]}  Bxe5 {[%clk 0:01:33]} 16. Bxe5 {[%clk 0:01:47]}  Nxe5 {[%clk 0:01:34]} 17. f4 {[%clk 0:01:42]}  b4 {[%clk 0:01:28]} 18. c4 {[%clk 0:01:30]}  Nc6 {[%clk 0:01:26]} 19. Nf3 {[%clk 0:01:29]}  Rfd8 {[%clk 0:01:08]} 20. e5 {[%clk 0:01:21]}  Nd4 {[%clk 0:00:49]} 21. Nxd4 {[%clk 0:01:21]}  Rxd4 {[%clk 0:00:50]} 22. Rxd4 {[%clk 0:01:20]}  cxd4 {[%clk 0:00:51]} 23. Bd3 {[%clk 0:01:17]}  Bb7 {[%clk 0:00:41]} 24. b3 {[%clk 0:01:15]}  a5 {[%clk 0:00:35]} 25. Kh2 {[%clk 0:01:14]}  a4 {[%clk 0:00:34]} 26. Rd1 {[%clk 0:01:14]}  axb3 {[%clk 0:00:33]} 27. axb3 {[%clk 0:01:15]}  Ra8 {[%clk 0:00:33]} 28. Be4 {[%clk 0:01:08]}  Ra3 {[%clk 0:00:30]} 29. Rd3 {[%clk 0:01:08]}  Qa7 {[%clk 0:00:24]} 30. Qf3 {[%clk 0:00:58]}  Bc8 {[%clk 0:00:13]} 31. Qf2 {[%clk 0:00:47]}  Qb6 {[%clk 0:00:06]} 32. Qxd4 {[%clk 0:00:41]}  Qxd4 {[%clk 0:00:05]} 33. Rxd4 {[%clk 0:00:42]}  Bf5 {[%clk 0:00:03]} 34. Bxf5 {[%clk 0:00:39]}  gxf5 {[%clk 0:00:04]} 35. Rd3 {[%clk 0:00:39]}  Kf8 {[%clk 0:00:03]} 36. Kg3 {[%clk 0:00:39]}  e6 {[%clk 0:00:01]} 37. Kf3 {[%clk 0:00:30]}  Ke7 {[%clk 0:00:01]} 38. Ke3 {[%clk 0:00:28]}  f6 {[%clk 0:00:01]} 39. exf6+ {[%clk 0:00:24]}  Kxf6 {[%clk 0:00:00]} 40. Kd4 {[%clk 0:00:25]} 1-0


[Site "https://www.chess.com"]

[Event "Titled Tuesday Blitz July 4 Late 2023"]
[White "Porat, Tori"]
[Black "Sanchez Enriquez, Oscar Gerardo"]
[WhiteFideId "30982626"]
[BlackFideId "5106311"]
[WhiteElo "2000"]
[BlackElo "2517"]
[Result "0-1"]
[Round "1"]
[TimeControl "180+2"]
[Date "2023.07.04"]
[WhiteClock "0:00:04"]
[BlackClock "0:01:33"]
[Board "188"]

1. d4 {[%clk 0:03:00]}  e6 {[%clk 0:03:00]} 2. c4 {[%clk 0:03:00]}  b6 {[%clk 0:03:00]} 3. Nc3 {[%clk 0:02:59]}  Bb4 {[%clk 0:02:59]} 4. Nf3 {[%clk 0:02:58]}  Bb7 {[%clk 0:03:00]} 5. Bg5 {[%clk 0:02:49]}  Nf6 {[%clk 0:02:58]} 6. e3 {[%clk 0:02:46]}  h6 {[%clk 0:02:59]} 7. Bh4 {[%clk 0:02:42]}  g5 {[%clk 0:02:59]} 8. Bg3 {[%clk 0:02:42]}  Ne4 {[%clk 0:03:00]} 9. Qc2 {[%clk 0:02:32]}  d6 {[%clk 0:03:00]} 10. Bd3 {[%clk 0:02:26]}  Bxc3+ {[%clk 0:02:58]} 11. bxc3 {[%clk 0:02:26]}  f5 {[%clk 0:02:59]} 12. Rd1 {[%clk 0:02:06]}  Nd7 {[%clk 0:02:58]} 13. Nd2 {[%clk 0:01:31]}  Nxd2 {[%clk 0:02:35]} 14. Rxd2 {[%clk 0:01:19]}  Bxg2 {[%clk 0:02:36]} 15. Rg1 {[%clk 0:01:19]}  Bf3 {[%clk 0:02:36]} 16. d5 {[%clk 0:01:15]}  Nc5 {[%clk 0:02:32]} 17. dxe6 {[%clk 0:01:10]}  Be4 {[%clk 0:02:29]} 18. Bxe4 {[%clk 0:00:56]}  fxe4 {[%clk 0:02:30]} 19. Be5 {[%clk 0:00:44]}  O-O {[%clk 0:02:23]} 20. Bd4 {[%clk 0:00:33]}  Nd3+ {[%clk 0:02:05]} 21. Kd1 {[%clk 0:00:30]}  Qe7 {[%clk 0:02:02]} 22. h4 {[%clk 0:00:19]}  Qxe6 {[%clk 0:02:00]} 23. hxg5 {[%clk 0:00:18]}  h5 {[%clk 0:02:01]} 24. Rxd3 {[%clk 0:00:18]}  exd3 {[%clk 0:02:00]} 25. Qxd3 {[%clk 0:00:18]}  Qf5 {[%clk 0:02:01]} 26. Qf1 {[%clk 0:00:11]}  Qb1+ {[%clk 0:01:59]} 27. Ke2 {[%clk 0:00:11]}  Qc2+ {[%clk 0:01:56]} 28. Ke1 {[%clk 0:00:10]}  c5 {[%clk 0:01:54]} 29. Qh3 {[%clk 0:00:06]}  Qxf2+ {[%clk 0:01:51]} 30. Kd1 {[%clk 0:00:06]}  cxd4 {[%clk 0:01:45]} 31. Qe6+ {[%clk 0:00:06]}  Qf7 {[%clk 0:01:45]} 32. Qh6 {[%clk 0:00:05]}  Qf3+ {[%clk 0:01:40]} 33. Kc2 {[%clk 0:00:05]}  Qf5+ {[%clk 0:01:37]} 34. Kb3 {[%clk 0:00:04]}  Rf7 {[%clk 0:01:36]} 35. g6 {[%clk 0:00:05]}  Rg7 {[%clk 0:01:36]} 36. Rg5 {[%clk 0:00:04]}  Qb1+ {[%clk 0:01:36]} 37. Ka3 {[%clk 0:00:04]}  Qc1+ {[%clk 0:01:36]} 38. Kb3 {[%clk 0:00:04]}  Qxc3+ {[%clk 0:01:36]} 39. Ka4 {[%clk 0:00:05]}  Qxc4+ {[%clk 0:01:35]} 40. Ka3 {[%clk 0:00:05]}  Qc3+ {[%clk 0:01:34]} 41. Ka4 {[%clk 0:00:05]}  b5+ {[%clk 0:01:35]} 42. Kxb5 {[%clk 0:00:05]}  Rb8+ {[%clk 0:01:34]} 43. Ka6 {[%clk 0:00:05]}  Qc6+ {[%clk 0:01:34]} 44. Ka5 {[%clk 0:00:05]}  Qb6+ {[%clk 0:01:32]} 45. Ka4 {[%clk 0:00:04]}  Qb4# {[%clk 0:01:33]} 0-1


[Site "https://www.chess.com"]

[Event "Titled Tuesday Blitz July 4 Late 2023"]
[White "Hnydiuk, Aleksander"]
[Black "Burke, Paul"]
[WhiteFideId "1109057"]
[BlackFideId "2605767"]
[WhiteElo "2513"]
[BlackElo "1930"]
[Result "1-0"]
[Round "1"]
[TimeControl "180+2"]
[Date "2023.07.04"]
[WhiteClock "0:01:25"]
[BlackClock "0:01:46"]
[Board "191"]

1. d4 {[%clk 0:02:46]}  a6 {[%clk 0:02:59]} 2. e4 {[%clk 0:02:45]}  d6 {[%clk 0:02:59]} 3. Nf3 {[%clk 0:02:41]}  g6 {[%clk 0:02:59]} 4. Nc3 {[%clk 0:02:38]}  h6 {[%clk 0:02:58]} 5. Be3 {[%clk 0:02:35]}  Nd7 {[%clk 0:02:57]} 6. Qd2 {[%clk 0:02:35]}  Bg7 {[%clk 0:02:56]} 7. O-O-O {[%clk 0:02:35]}  e5 {[%clk 0:02:56]} 8. h4 {[%clk 0:02:33]}  Ne7 {[%clk 0:02:54]} 9. h5 {[%clk 0:02:33]}  g5 {[%clk 0:02:54]} 10. dxe5 {[%clk 0:02:22]}  dxe5 {[%clk 0:02:52]} 11. Bc4 {[%clk 0:02:15]}  O-O {[%clk 0:02:43]} 12. Nxg5 {[%clk 0:02:15]}  hxg5 {[%clk 0:02:41]} 13. h6 {[%clk 0:02:16]}  Bf6 {[%clk 0:02:39]} 14. Bxg5 {[%clk 0:02:14]}  Nc6 {[%clk 0:02:23]} 15. Rh5 {[%clk 0:02:11]}  Nb6 {[%clk 0:02:11]} 16. Qe3 {[%clk 0:01:39]}  Qe7 {[%clk 0:02:05]} 17. Bb3 {[%clk 0:01:29]}  Bg4 {[%clk 0:02:02]} 18. Bxf6 {[%clk 0:01:27]}  Qxf6 {[%clk 0:01:46]} 19. Rg5+ {[%clk 0:01:25]} 1-0


[Site "https://www.chess.com"]

[Event "Titled Tuesday Blitz July 4 Late 2023"]
[White "Ezat, Mohamed"]
[Black "Nihal Sarin"]
[WhiteFideId "10600906"]
[BlackFideId "25092340"]
[WhiteElo "2591"]
[BlackElo "3127"]
[Result "0-1"]
[Round "2"]
[TimeControl "180+2"]
[Date "2023.07.04"]
[WhiteClock "0:00:00"]
[BlackClock "0:00:33"]
[Board "4"]

1. d4 {[%clk 0:03:00]}  Nf6 {[%clk 0:02:55]} 2. c4 {[%clk 0:03:01]}  e6 {[%clk 0:02:55]} 3. Nc3 {[%clk 0:03:01]}  Bb4 {[%clk 0:02:54]} 4. e3 {[%clk 0:03:01]}  O-O {[%clk 0:02:55]} 5. a3 {[%clk 0:03:01]}  Bxc3+ {[%clk 0:02:55]} 6. bxc3 {[%clk 0:03:02]}  c6 {[%clk 0:02:55]} 7. Bd3 {[%clk 0:03:02]}  d5 {[%clk 0:02:56]} 8. Ne2 {[%clk 0:03:02]}  b6 {[%clk 0:02:56]} 9. O-O {[%clk 0:03:01]}  Ba6 {[%clk 0:02:56]} 10. cxd5 {[%clk 0:03:01]}  Bxd3 {[%clk 0:02:55]} 11. Qxd3 {[%clk 0:03:02]}  cxd5 {[%clk 0:02:56]} 12. f3 {[%clk 0:03:00]}  Nc6 {[%clk 0:02:56]} 13. e4 {[%clk 0:03:00]}  h6 {[%clk 0:02:54]} 14. e5 {[%clk 0:02:58]}  Nd7 {[%clk 0:02:54]} 15. f4 {[%clk 0:02:59]}  f5 {[%clk 0:02:55]} 16. a4 {[%clk 0:02:54]}  Rc8 {[%clk 0:02:53]} 17. Ba3 {[%clk 0:02:54]}  Rf7 {[%clk 0:02:53]} 18. g4 {[%clk 0:02:50]}  Qh4 {[%clk 0:02:42]} 19. gxf5 {[%clk 0:02:50]}  Rxf5 {[%clk 0:02:42]} 20. Ng3 {[%clk 0:02:45]}  Rxf4 {[%clk 0:02:38]} 21. Rxf4 {[%clk 0:02:08]}  Qxf4 {[%clk 0:02:39]} 22. Rf1 {[%clk 0:02:07]}  Qg4 {[%clk 0:02:38]} 23. Qa6 {[%clk 0:01:37]}  Rc7 {[%clk 0:01:57]} 24. Bd6 {[%clk 0:01:34]}  Ncb8 {[%clk 0:01:57]} 25. Qd3 {[%clk 0:01:26]}  Rc4 {[%clk 0:01:55]} 26. Qd2 {[%clk 0:01:21]}  Nc6 {[%clk 0:01:47]} 27. Qf2 {[%clk 0:01:19]}  Qg6 {[%clk 0:01:46]} 28. Qf3 {[%clk 0:01:10]}  Rxa4 {[%clk 0:01:40]} 29. h4 {[%clk 0:01:06]}  h5 {[%clk 0:01:41]} 30. Kh1 {[%clk 0:01:03]}  Nxd4 {[%clk 0:01:30]} 31. cxd4 {[%clk 0:01:02]}  Rxd4 {[%clk 0:01:31]} 32. Be7 {[%clk 0:00:41]}  Nxe5 {[%clk 0:01:28]} 33. Qe3 {[%clk 0:00:37]}  Rd3 {[%clk 0:01:20]} 34. Qxe5 {[%clk 0:00:30]}  Rxg3 {[%clk 0:01:21]} 35. Kh2 {[%clk 0:00:22]}  Rg2+ {[%clk 0:01:20]} 36. Kh1 {[%clk 0:00:22]}  Rg3 {[%clk 0:01:20]} 37. Kh2 {[%clk 0:00:22]}  Rg2+ {[%clk 0:01:08]} 38. Kh1 {[%clk 0:00:22]}  Qg4 {[%clk 0:01:09]} 39. Qc3 {[%clk 0:00:07]}  Re2 {[%clk 0:00:42]} 40. Rf8+ {[%clk 0:00:02]}  Kh7 {[%clk 0:00:42]} 41. Qd3+ {[%clk 0:00:02]}  Re4 {[%clk 0:00:43]} 42. Qf1 {[%clk 0:00:01]}  b5 {[%clk 0:00:35]} 43. Bg5 {[%clk 0:00:00]}  Qg3 {[%clk 0:00:33]} 0-1


[Site "https://www.chess.com"]

[Event "Titled Tuesday Blitz July 4 Late 2023"]
[White "Firouzja, Alireza"]
[Black "Ballester Llagaria, Luis Eduardo"]
[WhiteFideId "12573981"]
[BlackFideId "2297620"]
[WhiteElo "3104"]
[BlackElo "2589"]
[Result "1-0"]
[Round "2"]
[TimeControl "180+2"]
[Date "2023.07.04"]
[WhiteClock "0:02:13"]
[BlackClock "0:00:24"]
[Board "5"]

1. d4 {[%clk 0:03:00]}  d5 {[%clk 0:02:54]} 2. Bg5 {[%clk 0:02:58]}  h6 {[%clk 0:02:54]} 3. Bh4 {[%clk 0:02:57]}  c6 {[%clk 0:02:54]} 4. e3 {[%clk 0:02:55]}  Qb6 {[%clk 0:02:54]} 5. b3 {[%clk 0:02:53]}  e5 {[%clk 0:02:54]} 6. Nf3 {[%clk 0:02:52]}  exd4 {[%clk 0:02:42]} 7. exd4 {[%clk 0:02:53]}  Bb4+ {[%clk 0:02:42]} 8. c3 {[%clk 0:02:53]}  Bd6 {[%clk 0:02:42]} 9. Bd3 {[%clk 0:02:53]}  Ne7 {[%clk 0:02:41]} 10. Qe2 {[%clk 0:02:51]}  Be6 {[%clk 0:02:37]} 11. O-O {[%clk 0:02:31]}  O-O {[%clk 0:02:37]} 12. Qc2 {[%clk 0:02:25]}  c5 {[%clk 0:02:22]} 13. Re1 {[%clk 0:02:24]}  Nbc6 {[%clk 0:02:19]} 14. dxc5 {[%clk 0:02:23]}  Bxc5 {[%clk 0:02:18]} 15. Nbd2 {[%clk 0:02:21]}  Rfe8 {[%clk 0:02:13]} 16. b4 {[%clk 0:02:17]}  Bd6 {[%clk 0:02:12]} 17. Nb3 {[%clk 0:02:17]}  Rac8 {[%clk 0:02:11]} 18. Qd2 {[%clk 0:02:16]}  Nf5 {[%clk 0:02:04]} 19. Bxf5 {[%clk 0:02:16]}  Bxf5 {[%clk 0:02:05]} 20. Qxd5 {[%clk 0:02:16]}  Nxb4 {[%clk 0:00:24]} 21. Qxf5 {[%clk 0:02:13]} 1-0


[Site "https://www.chess.com"]

[Event "Titled Tuesday Blitz July 4 Late 2023"]
[White "Zavgorodniy, Sergiy"]
[Black "Caruana, Fabiano"]
[WhiteFideId "14110148"]
[BlackFideId "2020009"]
[WhiteElo "2588"]
[BlackElo "3097"]
[Result "0-1"]
[Round "2"]
[TimeControl "180+2"]
[Date "2023.07.04"]
[WhiteClock "0:00:00"]
[BlackClock "0:00:02"]
[Board "6"]

1. d4 {[%clk 0:02:59]}  Nf6 {[%clk 0:02:59]} 2. c4 {[%clk 0:03:00]}  Nc6 {[%clk 0:02:59]} 3. Nf3 {[%clk 0:02:59]}  e6 {[%clk 0:02:59]} 4. g3 {[%clk 0:02:59]}  Bb4+ {[%clk 0:02:57]} 5. Nbd2 {[%clk 0:02:59]}  O-O {[%clk 0:02:57]} 6. Bg2 {[%clk 0:02:59]}  d5 {[%clk 0:02:56]} 7. O-O {[%clk 0:02:59]}  Ne4 {[%clk 0:02:55]} 8. e3 {[%clk 0:02:51]}  f5 {[%clk 0:02:48]} 9. a3 {[%clk 0:02:49]}  Bxd2 {[%clk 0:02:47]} 10. Nxd2 {[%clk 0:02:47]}  b6 {[%clk 0:02:47]} 11. Qa4 {[%clk 0:02:27]}  Bb7 {[%clk 0:02:45]} 12. cxd5 {[%clk 0:02:22]}  exd5 {[%clk 0:02:45]} 13. b4 {[%clk 0:02:21]}  Ne7 {[%clk 0:02:32]} 14. Nf3 {[%clk 0:02:15]}  Nc8 {[%clk 0:02:31]} 15. Ne5 {[%clk 0:02:09]}  Ncd6 {[%clk 0:02:31]} 16. Bb2 {[%clk 0:02:03]}  b5 {[%clk 0:02:31]} 17. Qc2 {[%clk 0:02:00]}  Nc4 {[%clk 0:02:31]} 18. Rfe1 {[%clk 0:01:54]}  c6 {[%clk 0:02:27]} 19. f3 {[%clk 0:01:52]}  Ned6 {[%clk 0:02:27]} 20. Bc3 {[%clk 0:01:43]}  Nxe5 {[%clk 0:02:01]} 21. dxe5 {[%clk 0:01:42]}  Nc4 {[%clk 0:02:02]} 22. Kh1 {[%clk 0:01:09]}  Qe8 {[%clk 0:01:52]} 23. f4 {[%clk 0:01:05]}  Qe6 {[%clk 0:01:38]} 24. a4 {[%clk 0:01:02]}  Ba6 {[%clk 0:01:36]} 25. a5 {[%clk 0:00:57]}  Bc8 {[%clk 0:01:34]} 26. Bd4 {[%clk 0:00:56]}  a6 {[%clk 0:01:34]} 27. Bc5 {[%clk 0:00:53]}  Rf7 {[%clk 0:01:33]} 28. Bf3 {[%clk 0:00:47]}  Qh6 {[%clk 0:01:28]} 29. Rg1 {[%clk 0:00:45]}  Be6 {[%clk 0:01:24]} 30. Rg2 {[%clk 0:00:42]}  Kh8 {[%clk 0:01:19]} 31. Rag1 {[%clk 0:00:41]}  Rg8 {[%clk 0:00:56]} 32. Bd4 {[%clk 0:00:33]}  Qh3 {[%clk 0:00:47]} 33. Qd1 {[%clk 0:00:24]}  h6 {[%clk 0:00:37]} 34. Qe2 {[%clk 0:00:09]}  Kh7 {[%clk 0:00:33]} 35. g4 {[%clk 0:00:09]}  fxg4 {[%clk 0:00:34]} 36. Bxg4 {[%clk 0:00:09]}  Bxg4 {[%clk 0:00:34]} 37. Rxg4 {[%clk 0:00:09]}  g5 {[%clk 0:00:25]} 38. R1g3 {[%clk 0:00:06]}  Qh5 {[%clk 0:00:25]} 39. Qg2 {[%clk 0:00:05]}  Qg6 {[%clk 0:00:23]} 40. h3 {[%clk 0:00:04]}  Rf5 {[%clk 0:00:16]} 41. Kh2 {[%clk 0:00:04]}  Qe6 {[%clk 0:00:15]} 42. h4 {[%clk 0:00:03]}  Qf7 {[%clk 0:00:12]} 43. hxg5 {[%clk 0:00:03]}  h5 {[%clk 0:00:11]} 44. Rh4 {[%clk 0:00:03]}  Kg6 {[%clk 0:00:11]} 45. Rgh3 {[%clk 0:00:03]}  Rh8 {[%clk 0:00:12]} 46. Qf3 {[%clk 0:00:03]}  Nd2 {[%clk 0:00:05]} 47. Qe2 {[%clk 0:00:03]}  Ne4 {[%clk 0:00:05]} 48. Rxh5 {[%clk 0:00:03]}  Rxf4 {[%clk 0:00:03]} 49. Rh6+ {[%clk 0:00:00]}  Kf5 {[%clk 0:00:02]} 0-1


[Site "https://www.chess.com"]